[Event "Live Chess"]
[Site "Chess.com"]
[Date "2024.06.01"]
[Round "-"]
[White "Richardallis"]
[Black "IanCalvert2"]
[Result "1/2-1/2"]
[WhiteElo "2039"]
[BlackElo "1511"]
[TimeControl "300"]
[EndTime "11:31:03 PDT"]
[Termination "Game drawn by repetition"]

1. d4 {[%clk 0:04:48.9]} 1... d5 {[%clk 0:04:56]} 2. Nf3 {[%clk 0:04:47.3]} 2...
Nf6 {[%clk 0:04:54.7]} 3. Bg5 {[%clk 0:04:45.9]} 3... Ne4 {[%clk 0:04:51.4]} 4.
Bf4 {[%clk 0:04:44.2]} 4... c5 {[%clk 0:04:50.1]} 5. c3 {[%clk 0:04:43]} 5...
Nc6 {[%clk 0:04:30.7]} 6. e3 {[%clk 0:04:39.1]} 6... Qb6 {[%clk 0:04:08.1]} 7.
Qb3 {[%clk 0:04:37]} 7... c4 {[%clk 0:04:01.6]} 8. Qxb6 {[%clk 0:04:34.9]} 8...
axb6 {[%clk 0:03:59.8]} 9. Nbd2 {[%clk 0:04:34]} 9... Bf5 {[%clk 0:03:56.8]} 10.
a3 {[%clk 0:04:30.2]} 10... b5 {[%clk 0:03:54.1]} 11. Rc1 {[%clk 0:04:27.8]}
11... e6 {[%clk 0:03:51.7]} 12. Nxe4 {[%clk 0:04:24.8]} 12... Bxe4 {[%clk
0:03:49.2]} 13. Nd2 {[%clk 0:04:23.7]} 13... Bg6 {[%clk 0:03:45.6]} 14. f3
{[%clk 0:04:22.8]} 14... Kd7 {[%clk 0:03:28]} 15. e4 {[%clk 0:04:21.7]} 15...
Bd6 {[%clk 0:03:21.5]} 16. Bxd6 {[%clk 0:04:19.9]} 16... Kxd6 {[%clk 0:03:19.9]}
17. h4 {[%clk 0:04:16.2]} 17... h5 {[%clk 0:03:00.9]} 18. Kf2 {[%clk 0:04:08.3]}
18... f6 {[%clk 0:02:30.5]} 19. g3 {[%clk 0:04:06.3]} 19... e5 {[%clk
0:02:22.6]} 20. exd5 {[%clk 0:04:05]} 20... Kxd5 {[%clk 0:02:20.5]} 21. dxe5
{[%clk 0:04:04]} 21... Nxe5 {[%clk 0:02:16.2]} 22. Ne4 {[%clk 0:03:49.9]} 22...
Bxe4 {[%clk 0:01:54.2]} 23. fxe4+ {[%clk 0:03:48.7]} 23... Kxe4 {[%clk
0:01:52.9]} 24. Bg2+ {[%clk 0:03:47.6]} 24... Kf5 {[%clk 0:01:51.1]} 25. Bxb7
{[%clk 0:03:43.4]} 25... Nd3+ {[%clk 0:01:47.1]} 26. Kf3 {[%clk 0:03:37.7]}
26... Nxc1 {[%clk 0:01:36.4]} 27. Be4+ {[%clk 0:03:36]} 27... Ke6 {[%clk
0:01:28.4]} 28. Bxa8 {[%clk 0:03:35]} 28... Rxa8 {[%clk 0:01:24.9]} 29. Rxc1
{[%clk 0:03:34.3]} 29... Rd8 {[%clk 0:01:23.3]} 30. Re1+ {[%clk 0:03:31.8]}
30... Kf5 {[%clk 0:01:15.9]} 31. Re7 {[%clk 0:03:27.6]} 31... Rd3+ {[%clk
0:01:13.3]} 32. Kf2 {[%clk 0:03:15]} 32... g5 {[%clk 0:01:10.4]} 33. hxg5 {[%clk
0:03:11.9]} 33... fxg5 {[%clk 0:01:09.2]} 34. Rb7 {[%clk 0:03:10.1]} 34... Rd2+
{[%clk 0:01:06.7]} 35. Kf3 {[%clk 0:03:09.2]} 35... Rxb2 {[%clk 0:01:05.4]} 36.
Rf7+ {[%clk 0:03:06.9]} 36... Kg6 {[%clk 0:01:03]} 37. Rb7 {[%clk 0:03:01.2]}
37... Rb3 {[%clk 0:01:01.8]} 38. Ke4 {[%clk 0:03:00.7]} 38... Rxc3 {[%clk
0:00:59.2]} 39. Rb6+ {[%clk 0:02:59.9]} 39... Kg7 {[%clk 0:00:55.4]} 40. Rxb5
{[%clk 0:02:58.5]} 40... Rxa3 {[%clk 0:00:53.5]} 41. Rxg5+ {[%clk 0:02:56.4]}
41... Kh6 {[%clk 0:00:50.4]} 42. Rg8 {[%clk 0:02:55.3]} 42... Kh7 {[%clk
0:00:49.2]} 43. Rg5 {[%clk 0:02:37.1]} 43... Kh6 {[%clk 0:00:47.7]} 44. Rg8
{[%clk 0:02:33.3]} 44... Kh7 {[%clk 0:00:46]} 45. Rg5 {[%clk 0:02:32]} 45... Kh6
{[%clk 0:00:44.5]} 1/2-1/2

[Event "Live Chess"]
[Site "Chess.com"]
[Date "2024.06.01"]
[Round "-"]
[White "MaksymYurii"]
[Black "chessfiction"]
[Result "0-1"]
[WhiteElo "935"]
[BlackElo "2405"]
[TimeControl "300"]
[EndTime "11:31:07 PDT"]
[Termination "chessfiction won by checkmate"]

1. e4 {[%clk 0:04:51.9]} 1... d6 {[%clk 0:04:56.9]} 2. Nf3 {[%clk 0:04:51.1]}
2... Nf6 {[%clk 0:04:55.8]} 3. Nc3 {[%clk 0:04:49.6]} 3... Bg4 {[%clk
0:04:55.4]} 4. Be2 {[%clk 0:04:48.1]} 4... Nc6 {[%clk 0:04:53.7]} 5. h3 {[%clk
0:04:45.4]} 5... Bh5 {[%clk 0:04:51.6]} 6. g4 {[%clk 0:04:43.7]} 6... Bg6 {[%clk
0:04:50.5]} 7. d3 {[%clk 0:04:39.1]} 7... e6 {[%clk 0:04:48.8]} 8. Bg5 {[%clk
0:04:37.5]} 8... Be7 {[%clk 0:04:47.5]} 9. h4 {[%clk 0:04:17.4]} 9... h6 {[%clk
0:04:41.6]} 10. Bxf6 {[%clk 0:04:08]} 10... Bxf6 {[%clk 0:04:41.5]} 11. h5
{[%clk 0:04:07.1]} 11... Bh7 {[%clk 0:04:38.4]} 12. d4 {[%clk 0:03:58.2]} 12...
Qe7 {[%clk 0:04:32.3]} 13. e5 {[%clk 0:03:56.1]} 13... dxe5 {[%clk 0:04:30.8]}
14. dxe5 {[%clk 0:03:53.4]} 14... Nxe5 {[%clk 0:04:30.7]} 15. Nxe5 {[%clk
0:03:45.4]} 15... Bxe5 {[%clk 0:04:29.6]} 16. Bb5+ {[%clk 0:03:36.3]} 16... c6
{[%clk 0:04:24.3]} 17. Ba4 {[%clk 0:03:27.2]} 17... Qb4 {[%clk 0:04:21.3]} 18.
Bb3 {[%clk 0:03:12.9]} 18... Bxc3+ {[%clk 0:04:19.2]} 19. bxc3 {[%clk
0:03:11.8]} 19... Qe4+ {[%clk 0:04:18.8]} 20. Qe2 {[%clk 0:03:07.6]} 20... Qxh1+
{[%clk 0:04:15.8]} 21. Qf1 {[%clk 0:03:04.7]} 21... Qxf1+ {[%clk 0:04:13.9]} 22.
Kxf1 {[%clk 0:03:03.5]} 22... O-O-O {[%clk 0:04:13.8]} 23. f4 {[%clk 0:02:59.6]}
23... Rd2 {[%clk 0:04:12.4]} 24. f5 {[%clk 0:02:55.9]} 24... Rhd8 {[%clk
0:04:10.9]} 25. fxe6 {[%clk 0:02:53.4]} 25... fxe6 {[%clk 0:04:10.1]} 26. Re1
{[%clk 0:02:47.5]} 26... Rf8+ {[%clk 0:04:08.4]} 27. Kg1 {[%clk 0:02:44]} 27...
Rff2 {[%clk 0:04:08.3]} 28. Bxe6+ {[%clk 0:02:30.4]} 28... Kc7 {[%clk
0:04:06.6]} 29. Bc4 {[%clk 0:02:24.1]} 29... Rg2+ {[%clk 0:04:03.5]} 30. Kh1
{[%clk 0:02:20.5]} 30... Rh2+ {[%clk 0:04:00.3]} 31. Kg1 {[%clk 0:02:19.1]}
31... Rdg2+ {[%clk 0:04:00.2]} 32. Kf1 {[%clk 0:02:17.6]} 32... Rxc2 {[%clk
0:03:58.8]} 33. Re7+ {[%clk 0:02:11.9]} 33... Kb6 {[%clk 0:03:55.9]} 34. Re1
{[%clk 0:02:04.2]} 34... Rh1# {[%clk 0:03:54.2]} 0-1

[Event "Live Chess"]
[Site "Chess.com"]
[Date "2024.06.01"]
[Round "-"]
[White "dl_chess"]
[Black "DoctorMantisTobogganMD"]
[Result "0-1"]
[WhiteElo "1171"]
[BlackElo "2208"]
[TimeControl "300"]
[EndTime "11:31:16 PDT"]
[Termination "DoctorMantisTobogganMD won by resignation"]

1. e4 {[%clk 0:04:56.4]} 1... g6 {[%clk 0:04:59.2]} 2. Nc3 {[%clk 0:04:54.7]}
2... c6 {[%clk 0:04:58.1]} 3. d4 {[%clk 0:04:52.6]} 3... Bg7 {[%clk 0:04:57.3]}
4. Nf3 {[%clk 0:04:48.3]} 4... d5 {[%clk 0:04:56.5]} 5. e5 {[%clk 0:04:46.9]}
5... Bg4 {[%clk 0:04:55.3]} 6. h3 {[%clk 0:04:42.6]} 6... Bxf3 {[%clk
0:04:53.9]} 7. Qxf3 {[%clk 0:04:40.6]} 7... f6 {[%clk 0:04:53.8]} 8. exf6 {[%clk
0:04:29.6]} 8... Nxf6 {[%clk 0:04:52.2]} 9. Bg5 {[%clk 0:04:20.2]} 9... O-O
{[%clk 0:04:48.2]} 10. Qe3 {[%clk 0:04:09.9]} 10... Nbd7 {[%clk 0:04:42]} 11.
Bd3 {[%clk 0:04:05.4]} 11... Qc7 {[%clk 0:04:38.8]} 12. O-O-O {[%clk 0:04:00.8]}
12... e5 {[%clk 0:04:37.7]} 13. dxe5 {[%clk 0:03:41.6]} 13... Qxe5 {[%clk
0:04:37.6]} 14. Rhe1 {[%clk 0:03:21.6]} 14... Qxe3+ {[%clk 0:04:06.2]} 15. fxe3
{[%clk 0:03:08.1]} 15... Rae8 {[%clk 0:04:03.6]} 16. Ne2 {[%clk 0:02:43.1]}
16... Ne4 {[%clk 0:03:59]} 17. Bxe4 {[%clk 0:02:37.7]} 17... Rxe4 {[%clk
0:03:58.9]} 18. Nd4 {[%clk 0:02:23.5]} 18... Rfe8 {[%clk 0:03:48.2]} 19. Nb3
{[%clk 0:01:40.6]} 19... h6 {[%clk 0:03:38.5]} 20. Nd2 {[%clk 0:01:27.6]} 20...
hxg5 {[%clk 0:03:34.1]} 21. Nxe4 {[%clk 0:01:25.6]} 21... Rxe4 {[%clk 0:03:34]}
22. g3 {[%clk 0:01:07.8]} 22... Ne5 {[%clk 0:03:18.5]} 23. Kb1 {[%clk
0:00:53.3]} 23... Nc4 {[%clk 0:03:09.8]} 24. c3 {[%clk 0:00:44.7]} 24... g4
{[%clk 0:02:56.8]} 25. h4 {[%clk 0:00:42.5]} 25... Be5 {[%clk 0:02:53.7]} 26.
Rg1 {[%clk 0:00:18.4]} 26... Rxe3 {[%clk 0:02:50.6]} 27. Rdf1 {[%clk 0:00:11.4]}
27... Nd2+ {[%clk 0:02:48.9]} 0-1

[Event "Live Chess"]
[Site "Chess.com"]
[Date "2024.06.01"]
[Round "-"]
[White "Nazar-Makarchuk"]
[Black "Ferrarifan27"]
[Result "0-1"]
[WhiteElo "1502"]
[BlackElo "2050"]
[TimeControl "300"]
[EndTime "11:31:16 PDT"]
[Termination "Ferrarifan27 won by resignation"]

1. e4 {[%clk 0:04:57.8]} 1... e5 {[%clk 0:04:54.4]} 2. Nf3 {[%clk 0:04:57.1]}
2... Nc6 {[%clk 0:04:52.9]} 3. Bb5 {[%clk 0:04:56.6]} 3... a6 {[%clk 0:04:51.5]}
4. Bxc6 {[%clk 0:04:56]} 4... dxc6 {[%clk 0:04:50.4]} 5. O-O {[%clk 0:04:55.2]}
5... Bg4 {[%clk 0:04:46.7]} 6. d4 {[%clk 0:04:53.8]} 6... Bxf3 {[%clk
0:04:41.7]} 7. Qxf3 {[%clk 0:04:52.6]} 7... exd4 {[%clk 0:04:37.8]} 8. Rd1
{[%clk 0:04:52]} 8... c5 {[%clk 0:04:29.2]} 9. c3 {[%clk 0:04:50.9]} 9... Bd6
{[%clk 0:04:15.9]} 10. cxd4 {[%clk 0:04:49.6]} 10... cxd4 {[%clk 0:04:15.2]} 11.
Qd3 {[%clk 0:04:38.8]} 11... c5 {[%clk 0:04:13]} 12. Nd2 {[%clk 0:04:37]} 12...
Ne7 {[%clk 0:04:10.2]} 13. Nb3 {[%clk 0:04:35.8]} 13... O-O {[%clk 0:04:07.9]}
14. g3 {[%clk 0:04:34.2]} 14... Qc7 {[%clk 0:04:05.6]} 15. Qf3 {[%clk
0:04:31.2]} 15... Ng6 {[%clk 0:04:01.7]} 16. Bd2 {[%clk 0:04:19.7]} 16... Ne5
{[%clk 0:03:58.8]} 17. Qg2 {[%clk 0:04:15]} 17... Nc4 {[%clk 0:03:54]} 18. Rab1
{[%clk 0:04:09.7]} 18... Nxd2 {[%clk 0:03:52.4]} 19. Nxd2 {[%clk 0:04:07.9]}
19... b5 {[%clk 0:03:50.5]} 20. Rdc1 {[%clk 0:04:05.2]} 20... Qb6 {[%clk
0:03:46.9]} 21. Nf3 {[%clk 0:03:56.3]} 21... Rfe8 {[%clk 0:03:43.9]} 22. e5
{[%clk 0:03:55.1]} 22... Be7 {[%clk 0:03:37.3]} 23. Qf1 {[%clk 0:03:52.1]} 23...
Rac8 {[%clk 0:03:33.9]} 24. b3 {[%clk 0:03:51.3]} 24... Qb7 {[%clk 0:03:27.8]}
25. Qg2 {[%clk 0:03:45.6]} 25... Bf8 {[%clk 0:03:23.3]} 26. Re1 {[%clk
0:03:39.5]} 26... Rcd8 {[%clk 0:03:15.4]} 27. Nh4 {[%clk 0:03:37.7]} 27... Qxg2+
{[%clk 0:03:12]} 28. Kxg2 {[%clk 0:03:35.6]} 28... c4 {[%clk 0:03:02]} 29. bxc4
{[%clk 0:03:33.7]} 29... bxc4 {[%clk 0:03:01]} 30. Rb6 {[%clk 0:03:28.8]} 30...
a5 {[%clk 0:03:00.1]} 31. Rc6 {[%clk 0:03:27.9]} 31... c3 {[%clk 0:02:57.2]} 32.
Nf3 {[%clk 0:03:22.2]} 32... Bb4 {[%clk 0:02:52.8]} 33. Rd1 {[%clk 0:03:19.1]}
33... d3 {[%clk 0:02:48.4]} 34. a3 {[%clk 0:03:08.6]} 34... c2 {[%clk
0:02:44.9]} 35. Rxd3 {[%clk 0:02:58.9]} 35... Rxd3 {[%clk 0:02:40]} 36. axb4
{[%clk 0:02:56.7]} 36... axb4 {[%clk 0:02:38.4]} 37. Rxc2 {[%clk 0:02:56.1]}
37... b3 {[%clk 0:02:36.2]} 38. Rb2 {[%clk 0:02:54.9]} 38... Rb8 {[%clk
0:02:34]} 39. Kf1 {[%clk 0:02:48.8]} 39... Rxf3 {[%clk 0:02:30.4]} 0-1

[Event "Live Chess"]
[Site "Chess.com"]
[Date "2024.06.01"]
[Round "-"]
[White "willc-h99"]
[Black "WilliamofOrange16th"]
[Result "1-0"]
[WhiteElo "2632"]
[BlackElo "1955"]
[TimeControl "300"]
[EndTime "11:31:35 PDT"]
[Termination "willc-h99 won by resignation"]

1. d4 {[%clk 0:04:59.1]} 1... d5 {[%clk 0:04:58.8]} 2. Nf3 {[%clk 0:04:57.6]}
2... Nf6 {[%clk 0:04:57.1]} 3. g3 {[%clk 0:04:56.6]} 3... c6 {[%clk 0:04:56.1]}
4. Bg2 {[%clk 0:04:56]} 4... Bf5 {[%clk 0:04:51.1]} 5. O-O {[%clk 0:04:55.4]}
5... e6 {[%clk 0:04:50.5]} 6. Nbd2 {[%clk 0:04:51.2]} 6... Bd6 {[%clk
0:04:47.5]} 7. Nh4 {[%clk 0:04:49.9]} 7... Bg6 {[%clk 0:04:46.3]} 8. c3 {[%clk
0:04:45.3]} 8... Nbd7 {[%clk 0:04:44.7]} 9. Re1 {[%clk 0:04:41.7]} 9... e5
{[%clk 0:04:44.1]} 10. Nxg6 {[%clk 0:04:40]} 10... hxg6 {[%clk 0:04:43]} 11. e4
{[%clk 0:04:39.2]} 11... dxe4 {[%clk 0:04:38.6]} 12. Nxe4 {[%clk 0:04:37.9]}
12... Nxe4 {[%clk 0:04:37.7]} 13. Bxe4 {[%clk 0:04:29.5]} 13... f5 {[%clk
0:04:36.8]} 14. dxe5 {[%clk 0:04:18.5]} 14... Bxe5 {[%clk 0:04:34.9]} 15. Bg2
{[%clk 0:03:54]} 15... O-O {[%clk 0:04:33.4]} 16. Qb3+ {[%clk 0:03:50.2]} 16...
Kh7 {[%clk 0:04:32.6]} 17. Qxb7 {[%clk 0:03:43]} 17... f4 {[%clk 0:04:22.6]} 18.
Qxc6 {[%clk 0:03:39.5]} 18... fxg3 {[%clk 0:04:19.9]} 19. hxg3 {[%clk
0:03:36.4]} 19... Rc8 {[%clk 0:04:12.7]} 20. Qe4 {[%clk 0:03:32.4]} 20... Bf6
{[%clk 0:04:07.1]} 21. Be3 {[%clk 0:03:26.4]} 21... Ne5 {[%clk 0:03:58.4]} 22.
Rad1 {[%clk 0:03:24]} 22... Qe7 {[%clk 0:03:53.9]} 23. Kh2 {[%clk 0:03:20.5]}
23... Rc4 {[%clk 0:03:51.3]} 24. Qd5 {[%clk 0:03:11]} 24... Ng4+ {[%clk
0:03:44.3]} 25. Kg1 {[%clk 0:03:09.6]} 25... Rc7 {[%clk 0:03:27.2]} 26. Bf3
{[%clk 0:03:06.7]} 26... Nxe3 {[%clk 0:03:20.3]} 27. Rxe3 {[%clk 0:03:04.5]}
27... Qf7 {[%clk 0:03:15.3]} 28. Qa5 {[%clk 0:02:40.6]} 28... Be7 {[%clk
0:02:50.1]} 29. Qxc7 {[%clk 0:02:35.5]} 1-0

[Event "Live Chess"]
[Site "Chess.com"]
[Date "2024.06.01"]
[Round "-"]
[White "JavaidMiah"]
[Black "hapehansen"]
[Result "0-1"]
[WhiteElo "1182"]
[BlackElo "2243"]
[TimeControl "300"]
[EndTime "11:31:39 PDT"]
[Termination "hapehansen won on time"]

1. c4 {[%clk 0:04:58.7]} 1... e6 {[%clk 0:04:57.2]} 2. Nc3 {[%clk 0:04:58.1]}
2... d5 {[%clk 0:04:56.6]} 3. cxd5 {[%clk 0:04:56.8]} 3... exd5 {[%clk 0:04:55]}
4. d4 {[%clk 0:04:56.2]} 4... Nf6 {[%clk 0:04:53]} 5. Nf3 {[%clk 0:04:55.7]}
5... c6 {[%clk 0:04:48.8]} 6. Bf4 {[%clk 0:04:54.8]} 6... Bd6 {[%clk 0:04:46.8]}
7. Qd2 {[%clk 0:04:52.1]} 7... O-O {[%clk 0:04:42]} 8. Rc1 {[%clk 0:04:50.9]}
8... Re8 {[%clk 0:04:35.7]} 9. Bxd6 {[%clk 0:04:32.5]} 9... Qxd6 {[%clk
0:04:32.6]} 10. e3 {[%clk 0:04:00.4]} 10... Nbd7 {[%clk 0:04:28.1]} 11. Bd3
{[%clk 0:03:59]} 11... Nb6 {[%clk 0:04:16]} 12. O-O {[%clk 0:03:57.6]} 12... Ne4
{[%clk 0:04:10.2]} 13. Qc2 {[%clk 0:03:45.7]} 13... Qe7 {[%clk 0:03:55.3]} 14.
Ne5 {[%clk 0:02:51.5]} 14... f6 {[%clk 0:03:50.7]} 15. f3 {[%clk 0:02:02.5]}
15... Ng5 {[%clk 0:03:08.9]} 16. h4 {[%clk 0:01:43.6]} 16... fxe5 {[%clk
0:03:02.3]} 17. hxg5 {[%clk 0:01:42.2]} 17... Qxg5 {[%clk 0:02:51.1]} 18. Bxh7+
{[%clk 0:01:38.8]} 18... Kh8 {[%clk 0:02:48.4]} 19. f4 {[%clk 0:01:10.6]} 19...
Qh6 {[%clk 0:02:43.7]} 20. Bg6 {[%clk 0:00:43.6]} 20... Re6 {[%clk 0:02:41.4]}
21. f5 {[%clk 0:00:40.8]} 21... Re7 {[%clk 0:02:37.9]} 22. Qf2 {[%clk
0:00:33.2]} 22... Bd7 {[%clk 0:02:18.7]} 23. f6 {[%clk 0:00:18.3]} 23... gxf6
{[%clk 0:02:16.2]} 24. Qxf6+ {[%clk 0:00:16.9]} 24... Qg7 {[%clk 0:02:15.1]} 25.
Qh4+ {[%clk 0:00:09.1]} 25... Kg8 {[%clk 0:02:13.1]} 26. Bh5 {[%clk 0:00:04.5]}
26... exd4 {[%clk 0:02:03.6]} 27. Rf2 {[%clk 0:00:02.2]} 27... dxe3 {[%clk
0:02:00.9]} 0-1

[Event "Live Chess"]
[Site "Chess.com"]
[Date "2024.06.01"]
[Round "-"]
[White "gobbles19"]
[Black "LL220284LL"]
[Result "0-1"]
[WhiteElo "2189"]
[BlackElo "2578"]
[TimeControl "300"]
[EndTime "11:31:42 PDT"]
[Termination "LL220284LL won by checkmate"]

1. e4 {[%clk 0:04:56.8]} 1... g6 {[%clk 0:04:58.3]} 2. d4 {[%clk 0:04:54.4]}
2... Bg7 {[%clk 0:04:57.7]} 3. Nc3 {[%clk 0:04:50.9]} 3... d6 {[%clk 0:04:57.2]}
4. Be2 {[%clk 0:04:45.4]} 4... Nd7 {[%clk 0:04:56.7]} 5. Nf3 {[%clk 0:04:44.1]}
5... b6 {[%clk 0:04:54.9]} 6. O-O {[%clk 0:04:42.2]} 6... Bb7 {[%clk 0:04:53.2]}
7. Be3 {[%clk 0:04:32.2]} 7... Ngf6 {[%clk 0:04:51.9]} 8. Nd2 {[%clk 0:04:22.8]}
8... O-O {[%clk 0:04:48.8]} 9. f4 {[%clk 0:04:20.5]} 9... c5 {[%clk 0:04:46.2]}
10. d5 {[%clk 0:04:18]} 10... Re8 {[%clk 0:04:41.6]} 11. Bf3 {[%clk 0:04:12.4]}
11... e6 {[%clk 0:04:38.6]} 12. Nc4 {[%clk 0:04:10]} 12... Qb8 {[%clk
0:04:04.2]} 13. Bf2 {[%clk 0:03:54.2]} 13... exd5 {[%clk 0:04:00]} 14. exd5
{[%clk 0:03:51.9]} 14... a6 {[%clk 0:03:57.6]} 15. a4 {[%clk 0:03:50]} 15... Qc7
{[%clk 0:03:48.4]} 16. Qd2 {[%clk 0:03:40.3]} 16... Re7 {[%clk 0:03:35.1]} 17.
Rfe1 {[%clk 0:03:37]} 17... Rae8 {[%clk 0:03:34.5]} 18. Rxe7 {[%clk 0:03:32.6]}
18... Rxe7 {[%clk 0:03:34.4]} 19. Re1 {[%clk 0:03:31.5]} 19... Rxe1+ {[%clk
0:03:29.5]} 20. Qxe1 {[%clk 0:03:31.4]} 20... Bf8 {[%clk 0:03:28.9]} 21. Qd2
{[%clk 0:03:02]} 21... Bc8 {[%clk 0:03:27.4]} 22. f5 {[%clk 0:02:41.7]} 22...
Ne5 {[%clk 0:03:24.7]} 23. Nxe5 {[%clk 0:02:39.8]} 23... dxe5 {[%clk 0:03:23.4]}
24. fxg6 {[%clk 0:02:38.7]} 24... hxg6 {[%clk 0:03:21.3]} 25. Qg5 {[%clk
0:02:33.3]} 25... Bg7 {[%clk 0:03:11.2]} 26. Bg3 {[%clk 0:02:31.5]} 26... Ne8
{[%clk 0:03:04]} 27. h3 {[%clk 0:01:59.3]} 27... Bf6 {[%clk 0:02:42.3]} 28. Qe3
{[%clk 0:01:56.1]} 28... Qe7 {[%clk 0:02:38.3]} 29. Ne4 {[%clk 0:01:54.3]} 29...
Bg7 {[%clk 0:02:37.2]} 30. Nd2 {[%clk 0:01:39]} 30... f5 {[%clk 0:02:32.3]} 31.
Qb3 {[%clk 0:01:36.2]} 31... f4 {[%clk 0:02:13.3]} 32. Bf2 {[%clk 0:01:31.2]}
32... Nd6 {[%clk 0:01:57.7]} 33. Ne4 {[%clk 0:01:27.3]} 33... Bf5 {[%clk
0:01:55.9]} 34. Bh4 {[%clk 0:01:10.6]} 34... Qxh4 {[%clk 0:01:38.6]} 35. Nxd6
{[%clk 0:01:09.8]} 35... Qe1+ {[%clk 0:01:38.1]} 36. Kh2 {[%clk 0:01:09.2]}
36... Qg3+ {[%clk 0:01:37.3]} 37. Kg1 {[%clk 0:01:08.4]} 37... e4 {[%clk
0:01:34.3]} 38. Nxe4 {[%clk 0:00:54.3]} 38... Bxe4 {[%clk 0:01:32.1]} 39. d6+
{[%clk 0:00:52.5]} 39... Kh7 {[%clk 0:01:29.3]} 40. Bxe4 {[%clk 0:00:42.8]}
40... Bd4+ {[%clk 0:01:28.2]} 41. Kh1 {[%clk 0:00:41.4]} 41... Qe1+ {[%clk
0:01:27]} 42. Kh2 {[%clk 0:00:40]} 42... Qg1# {[%clk 0:01:26.5]} 0-1

[Event "Live Chess"]
[Site "Chess.com"]
[Date "2024.06.01"]
[Round "-"]
[White "grandmaster1707"]
[Black "rakibsachchu"]
[Result "1-0"]
[WhiteElo "1467"]
[BlackElo "1557"]
[TimeControl "300"]
[EndTime "11:31:44 PDT"]
[Termination "grandmaster1707 won by resignation"]

1. e4 {[%clk 0:04:58.6]} 1... c5 {[%clk 0:04:57]} 2. Nf3 {[%clk 0:04:58.1]} 2...
e6 {[%clk 0:04:54.5]} 3. d4 {[%clk 0:04:57.3]} 3... cxd4 {[%clk 0:04:53.4]} 4.
Nxd4 {[%clk 0:04:56.5]} 4... a6 {[%clk 0:04:52.2]} 5. Nc3 {[%clk 0:04:55.8]}
5... Qc7 {[%clk 0:04:51]} 6. f4 {[%clk 0:04:53.9]} 6... b5 {[%clk 0:04:49.8]} 7.
a3 {[%clk 0:04:49.7]} 7... Bb7 {[%clk 0:04:48.5]} 8. Be3 {[%clk 0:04:48.2]} 8...
Nc6 {[%clk 0:04:46.2]} 9. Nxc6 {[%clk 0:04:45]} 9... Qxc6 {[%clk 0:04:37.4]} 10.
Be2 {[%clk 0:04:41.8]} 10... Nf6 {[%clk 0:04:33.9]} 11. Bf3 {[%clk 0:04:39.4]}
11... Qc7 {[%clk 0:04:27.3]} 12. O-O {[%clk 0:04:37.7]} 12... b4 {[%clk
0:04:22.4]} 13. Na4 {[%clk 0:04:24.8]} 13... Nxe4 {[%clk 0:04:15.1]} 14. Nb6
{[%clk 0:04:21.7]} 14... Rb8 {[%clk 0:04:09.8]} 15. Qd4 {[%clk 0:04:18.4]} 15...
Bc5 {[%clk 0:03:57.1]} 16. Qd3 {[%clk 0:04:06.1]} 16... Qxb6 {[%clk 0:03:49.8]}
17. Bxe4 {[%clk 0:04:02.2]} 17... Bxe3+ {[%clk 0:03:46.6]} 18. Kh1 {[%clk
0:04:01.7]} 18... Bxe4 {[%clk 0:03:39.2]} 19. Qxe4 {[%clk 0:04:00.8]} 19... d5
{[%clk 0:03:37.6]} 20. Qf3 {[%clk 0:03:58]} 20... Bd4 {[%clk 0:03:22.3]} 21. f5
{[%clk 0:03:56.2]} 21... Bxb2 {[%clk 0:03:12.5]} 22. fxe6 {[%clk 0:03:46.2]}
22... Bf6 {[%clk 0:03:00.8]} 23. exf7+ {[%clk 0:03:40.3]} 23... Kxf7 {[%clk
0:02:55.8]} 24. Qxd5+ {[%clk 0:03:38.8]} 24... Qe6 {[%clk 0:02:54.4]} 25. Qd3
{[%clk 0:03:31.4]} 25... Rhe8 {[%clk 0:02:49.6]} 26. Qxh7 {[%clk 0:03:26.8]}
26... Rh8 {[%clk 0:02:25.2]} 27. Qd3 {[%clk 0:03:15.1]} 27... Qe5 {[%clk
0:02:12]} 28. Qc4+ {[%clk 0:03:09.1]} 28... Kg6 {[%clk 0:02:04.7]} 29. Qd3+
{[%clk 0:03:05.2]} 29... Kf7 {[%clk 0:01:45.3]} 30. h3 {[%clk 0:03:03.1]} 30...
Rhc8 {[%clk 0:01:29.2]} 31. Rae1 {[%clk 0:03:00.4]} 31... Qb5 {[%clk 0:01:17.3]}
32. Qb3+ {[%clk 0:02:51.5]} 32... Qc4 {[%clk 0:01:12.8]} 33. Qf3 {[%clk
0:02:48.6]} 33... bxa3 {[%clk 0:01:07.8]} 34. Qxa3 {[%clk 0:02:43.8]} 34... Qb4
{[%clk 0:01:00.3]} 35. Qa2+ {[%clk 0:02:40.9]} 35... Qc4 {[%clk 0:00:56.1]} 36.
Qa3 {[%clk 0:02:38.9]} 36... Qb4 {[%clk 0:00:42.5]} 37. Qf3 {[%clk 0:02:32.6]}
37... Rxc2 {[%clk 0:00:37.5]} 38. Qd5+ {[%clk 0:02:28.8]} 38... Kg6 {[%clk
0:00:34.1]} 39. Qf5+ {[%clk 0:02:27]} 39... Kf7 {[%clk 0:00:29.2]} 40. Qxc2
{[%clk 0:02:25.7]} 1-0